bitfinex/quotes_ETHUSD_20240924
["timestamp","ask_amount","ask_price","bid_price","bid_amount"]
[1727148056580,0.07713484,2629.9,2629.8,1.5384512]
[1727148056773,3.80202,2630.2,2629.8,1.5384512]
[1727148056968,0.07729114,2630.1,2629.8,1.5384512]
[1727148057619,3.87946114,2630.1,2629.8,1.5384512]
[1727148059536,0.07729114,2630.1,2629.8,1.5384512]
[1727148061625,3.87943114,2630.1,2629.8,1.5384512]
[1727148062408,0.07729114,2630.1,2629.8,1.5384512]
[1727148063394,3.87947114,2630.1,2629.8,1.5384512]
[1727148065292,0.07729114,2630.1,2629.8,1.5384512]
[1727148067124,3.87944114,2630.1,2629.8,1.5384512]
[1727148069543,0.07729114,2630.1,2629.8,1.5384512]
[1727148071396,3.802,2630.2,2629.8,1.5384512]
[1727148071626,0.07741215,2630.1,2629.8,1.5384512]
[1727148072398,3.87954215,2630.1,2630.0,1.46450973]
[1727148073043,0.07741215,2630.1,2630.0,1.46450973]
[1727148073427,3.80199,2630.2,2630.0,1.46450973]
[1727148073629,0.07741215,2630.1,2630.0,1.46450973]
[1727148074451,3.80232,2630.0,2629.8,1.5384512]
[1727148075017,0.07741215,2629.9,2629.8,1.5384512]
[1727148076714,0.07741215,2629.9,2629.8,3.00296093]
[1727148077117,0.07741215,2629.9,2629.8,1.5384512]
[1727148077118,6.87983215,2629.9,2629.8,1.5384512]
[1727148077308,8.27979684,2629.9,2629.8,1.5384512]
[1727148079145,8.80289684,2629.9,2629.8,1.5384512]
[1727148083047,12.65597988,2629.9,2629.8,1.5384512]
[1727148083214,9.35289684,2629.9,2629.8,1.5384512]
[1727148084678,12.65358824,2629.9,2629.8,1.5384512]
[1727148085066,12.65367123,2629.9,2629.8,1.5384512]
[1727148085252,9.35289684,2629.9,2629.8,1.5384512]
[1727148087764,12.65367123,2629.9,2629.8,1.5384512]
[1727148088180,12.65226812,2629.9,2629.8,1.5384512]
[1727148088958,14.65226812,2629.9,2629.8,1.5384512]
[1727148089170,11.35289684,2629.9,2629.8,0.74819523]
[1727148089345,11.74947416,2629.9,2629.8,0.74819523]
[1727148089741,4.32668,2629.1,2629.0,0.0384512]
[1727148089945,4.83549839,2629.1,2629.0,0.0384512]
[1727148091247,8.38549839,2629.1,2629.0,0.0384512]
[1727148091648,10.38549839,2629.1,2629.0,0.0384512]
[1727148092417,13.67973626,2629.1,2629.0,0.0384512]
[1727148092736,10.38549839,2629.1,2629.0,0.0384512]
[1727148093315,11.24034611,2629.1,2629.0,0.0384512]
[1727148093830,8.45185038,2629.1,2629.0,0.0384512]
[1727148094393,8.38549839,2629.1,2629.0,0.0384512]
[1727148094812,11.17172183,2629.1,2629.0,0.0384512]
[1727148094999,11.17179399,2629.1,2629.0,0.0384512]
[1727148095393,8.38549839,2629.1,2629.0,0.0384512]
[1727148095632,11.17179399,2629.1,2629.0,0.0384512]
[1727148096627,8.38549839,2629.1,2629.0,0.0384512]
[1727148096823,10.38549839,2629.1,2629.0,0.0384512]
[1727148097349,16.85450461,2629.1,2629.0,0.0384512]
[1727148097507,13.56023364,2629.1,2629.0,0.0384512]
[1727148098011,16.84859187,2629.1,2629.0,0.0384512]
[1727148098419,13.56023364,2629.1,2629.0,0.0384512]
[1727148099008,37.43623364,2629.1,2629.0,0.0384512]
[1727148099550,41.38737912,2629.1,2629.0,0.0384512]
[1727148099712,7.87784,2628.3,2628.2,0.03703428]
[1727148100105,7.95254725,2628.3,2628.2,0.03703428]
[1727148100663,7.42944725,2628.3,2628.2,0.03703428]
[1727148101748,3.07470725,2628.3,2628.2,0.03703428]
[1727148102056,0.07470725,2628.3,2628.2,0.03703428]
[1727148102220,0.07470725,2628.3,2628.2,0.83143428]
[1727148103122,0.07470725,2628.3,2627.3,3.17473525]
[1727148103123,3.80564,2627.7,2627.3,0.7944]
[1727148103320,6.80579,2627.6,2627.3,0.7944]
[1727148103528,6.80579,2627.6,2626.6,0.0384512]
[1727148103529,0.5231,2626.9,2626.6,0.0384512]
[1727148103763,0.07472744,2626.8,2626.6,0.0384512]
[1727148103930,3.0,2627.0,2626.6,0.0384512]
[1727148104117,0.07472744,2626.9,2626.6,0.0384512]
[1727148104628,3.88152744,2626.9,2626.6,0.0384512]
[1727148104957,3.80692,2626.8,2626.6,0.0384512]
[1727148105321,6.80663,2627.0,2626.5,0.7944]
[1727148105322,3.07436384,2626.7,2626.5,0.7944]
[1727148105525,0.07436384,2626.7,2626.6,0.0375468]
[1727148105722,3.0,2626.9,2626.6,0.0375468]
[1727148106024,0.07436384,2626.8,2626.6,0.0375468]
[1727148106954,3.07436384,2626.8,2626.6,0.0375468]
[1727148107667,0.07436384,2626.8,2626.6,3.21228205]
[1727148108045,6.80659,2627.1,2626.6,3.21228205]
[1727148108251,0.07436384,2626.7,2626.6,3.21228205]
[1727148108451,3.0,2626.9,2626.6,3.21228205]
[1727148108949,0.07436384,2626.8,2626.6,3.21228205]
[1727148109151,0.07436384,2626.8,2626.7,0.8023]
[1727148109348,3.0,2627.1,2626.7,0.8023]
[1727148109552,0.07436384,2627.0,2626.9,3.17473525]
[1727148111567,0.07436384,2627.0,2626.9,3.57243878]
[1727148111766,0.07379308,2627.0,2626.9,4.37473878]
[1727148112152,6.80622,2627.3,2626.9,4.37473878]
[1727148112464,6.80622,2627.3,2626.9,3.97703525]
[1727148112465,3.0,2627.3,2626.9,3.97703525]
[1727148112643,3.80579,2627.6,2627.3,0.8023]
[1727148113336,3.80592,2627.5,2627.3,0.8023]
[1727148114382,3.80604,2627.4,2627.3,0.8023]
[1727148114664,3.80579,2627.6,2627.3,0.8023]
[1727148115869,3.0,2628.0,2627.5,3.17473525]
[1727148116077,3.0,2627.8,2627.5,3.17473525]
[1727148116240,6.80558,2627.8,2627.5,3.17473525]
[1727148116572,3.0,2627.8,2627.5,3.17473525]
[1727148116911,0.07379308,2627.7,2627.5,3.17473525]
[1727148117375,3.0,2627.8,2627.5,3.17473525]
[1727148117559,0.07379308,2627.6,2627.5,3.17473525]
[1727148118071,6.80548,2627.8,2627.5,3.17473525]
[1727148118266,0.07379308,2627.6,2627.5,3.17473525]
[1727148118477,6.80548,2627.8,2627.5,3.17473525]
[1727148118675,0.07379308,2627.6,2627.5,3.17473525]
[1727148118856,3.0,2627.8,2627.5,3.17473525]
[1727148119173,0.07379308,2627.6,2627.5,3.17473525]
[1727148119349,3.0,2627.8,2627.5,3.17473525]
[1727148119551,0.07379308,2627.6,2627.5,3.17473525]
[1727148119750,6.80551,2627.8,2627.5,3.17473525]
[1727148119971,0.07379308,2627.6,2627.5,3.17473525]
[1727148120141,3.0,2627.8,2627.5,3.17473525]
[1727148120341,0.07420224,2627.6,2627.5,3.17473525]
[1727148120553,3.0,2627.8,2627.5,3.17473525]
[1727148120770,0.07420224,2627.6,2627.5,3.17473525]
[1727148121387,3.0,2627.8,2627.5,3.17473525]
[1727148121561,0.07420224,2627.6,2627.5,3.17473525]
[1727148122083,3.0,2627.8,2627.5,3.17473525]
[1727148122281,0.07420224,2627.6,2627.5,3.17473525]
[1727148122591,3.0,2627.8,2627.6,0.8289]
[1727148123850,3.0,2628.0,2627.6,0.8289]
[1727148124048,6.80517,2628.0,2627.6,0.8289]
[1727148124359,3.0,2628.0,2627.8,3.17473525]
[1727148124542,6.80528,2628.0,2627.8,3.17473525]
[1727148124749,6.80531,2627.9,2627.8,3.17473525]
[1727148126589,3.0,2628.0,2627.8,3.17473525]
[1727148126902,6.80517,2628.0,2627.9,0.8289]
[1727148127092,0.58946285,2628.8,2627.9,1.22926353]
[1727148127311,3.80429,2628.7,2628.5,3.17473525]
[1727148127681,3.8043,2628.6,2628.5,3.17473525]
[1727148127869,3.80445,2628.5,2628.2,4.00363525]
[1727148128187,3.80467,2628.4,2628.2,4.00363525]
[1727148129448,3.80474,2628.3,2628.2,4.00363525]
[1727148130505,3.80474,2628.3,2627.9,4.00363525]
[1727148130506,3.80507,2628.1,2627.9,4.00363525]
[1727148131511,3.80488,2628.2,2627.9,4.00363525]
[1727148131672,0.07420224,2628.0,2627.9,4.00363525]
[1727148131873,3.80504,2628.1,2627.9,0.8289]
[1727148132201,0.07420224,2628.0,2627.9,4.00363525]
[1727148135569,0.07449004,2628.0,2627.9,4.00363525]
[1727148135976,3.80489,2628.2,2627.9,4.00363525]
[1727148136483,0.07449004,2628.1,2627.9,4.00363525]
[1727148138246,0.07449004,2628.1,2627.1,3.80641]
[1727148138247,0.46242804,2628.1,2627.7,0.8118]
[1727148138438,0.46242804,2628.1,2627.5,0.8118]
[1727148138439,3.80557,2627.8,2627.5,0.8118]
[1727148138935,0.07449004,2627.7,2627.5,0.8118]
[1727148139311,3.80557,2627.8,2627.5,0.8118]
[1727148139547,4.566648,2627.8,2627.5,0.8118]
[1727148139857,3.88010004,2627.7,2627.5,0.8118]
[1727148140433,0.07449004,2627.7,2627.5,0.8118]
[1727148140639,4.566648,2627.8,2627.5,0.8118]
[1727148140946,0.07449004,2627.7,2627.5,0.8118]
[1727148141244,0.07449004,2627.6,2627.5,0.8118]
[1727148141415,3.80566,2627.7,2627.5,0.8118]
[1727148141623,3.80566,2627.7,2627.4,3.17473525]
[1727148141624,0.8372308,2627.7,2627.4,3.17473525]
[1727148141820,3.80526,2628.0,2627.4,3.17473525]
[1727148141821,3.88033004,2627.6,2627.4,3.17473525]
[1727148142410,3.88033004,2627.6,2626.7,1.0]
[1727148142411,3.80589,2627.5,2627.1,3.17473525]
[1727148142649,3.80613,2627.4,2627.1,3.99973525]
[1727148143048,0.07449004,2627.3,2627.1,3.99973525]
[1727148143754,3.88076004,2627.3,2627.1,3.99973525]
[1727148143962,3.88076004,2627.3,2627.1,3.17473525]
[1727148144130,0.07449004,2627.3,2627.1,3.17473525]
[1727148144327,6.80585,2627.6,2627.2,0.825]
[1727148144595,7.91931,2627.6,2627.4,3.17473525]
[1727148144772,3.80589,2627.5,2627.4,3.17473525]
[1727148145500,7.91921,2627.6,2626.8,3.80678]
[1727148145688,3.80605,2627.4,2627.1,3.99973525]
[1727148146691,0.07412144,2627.3,2627.1,3.99973525]
[1727148147113,3.80591,2627.5,2627.1,3.99973525]
[1727148147291,0.07412144,2627.2,2627.1,3.99973525]
[1727148147505,3.80591,2627.5,2627.1,3.99973525]
[1727148147668,0.07412144,2627.2,2627.1,3.99973525]
[1727148147869,7.91921,2627.6,2627.1,3.99973525]
[1727148148179,0.07412144,2627.5,2627.1,3.99973525]
[1727148149221,0.07412144,2627.5,2627.4,3.17473525]
[1727148150969,0.07412144,2627.5,2627.4,6.98077525]
[1727148151181,3.80494,2628.2,2627.5,3.80589]
[1727148151513,3.80503,2628.1,2627.5,3.80578]
[1727148151808,0.07426286,2628.1,2627.9,3.17473525]
[1727148151966,0.07426286,2628.1,2628.0,0.781]
[1727148152189,8.370282,2628.4,2628.0,0.781]
[1727148152514,4.6940982,2628.3,2628.0,0.781]
[1727148152691,0.96368186,2628.3,2628.0,0.781]
[1727148152890,0.07434366,2628.3,2628.0,0.781]
[1727148153109,3.07434366,2628.3,2628.0,0.781]
[1727148153901,6.87908366,2628.3,2628.0,0.781]
[1727148154109,3.07434366,2628.3,2628.0,0.781]
[1727148154526,6.87912366,2628.3,2628.0,0.781]
[1727148155323,7.99981303,2628.3,2628.0,0.781]
[1727148155725,4.19503303,2628.3,2628.0,0.781]
[1727148155921,3.07434366,2628.3,2628.0,0.781]
[1727148159767,3.07434366,2628.3,2627.9,3.17473525]
[1727148159933,3.8049,2628.2,2627.9,3.17473525]
[1727148160128,3.87980413,2628.2,2627.9,3.17473525]
[1727148162178,0.59800413,2628.2,2627.6,3.17473525]
[1727148162377,3.80525,2628.0,2627.6,3.95573525]
[1727148162870,0.07486879,2627.9,2627.6,3.95573525]
[1727148163950,3.80503,2628.1,2627.6,3.95573525]
[1727148164280,0.07485869,2627.8,2627.6,4.58666]
[1727148164437,4.32805,2628.2,2627.9,3.17473525]
[1727148164638,1.113272,2628.2,2627.9,3.17473525]
[1727148164838,6.80483,2628.3,2627.9,3.17473525]
[1727148165640,3.0,2628.4,2628.2,3.17473525]
[1727148165839,6.5979217,2628.5,2628.2,3.17473525]
[1727148165840,6.80445,2628.5,2628.2,3.17473525]
[1727148166066,3.80424,2628.7,2628.2,3.17473525]
[1727148167232,6.80432,2628.6,2628.2,3.17473525]
[1727148167372,3.80448,2628.5,2628.2,3.17473525]
[1727148169375,6.80433,2628.6,2628.2,3.17473525]
[1727148171688,0.07497985,2628.5,2628.2,3.17473525]
[1727148174291,3.87949985,2628.5,2628.2,3.17473525]
[1727148174491,5.05712935,2628.5,2628.2,3.17473525]
[1727148175312,3.80489,2628.2,2627.9,3.17473525]
[1727148175836,3.88021147,2628.1,2627.9,3.17473525]
[1727148176427,3.80517,2628.0,2627.9,3.17473525]
[1727148176800,3.88028109,2628.0,2627.9,3.17473525]
[1727148182253,0.07511109,2628.0,2627.9,3.17473525]
[1727148183967,3.88028109,2628.0,2627.9,3.17473525]
[1727148184462,3.8054,2627.9,2627.6,0.8178]
[1727148184666,3.8054,2627.9,2627.7,3.17473525]
[1727148184825,0.07484354,2627.8,2627.7,3.17473525]
[1727148185723,6.19916666,2628.1,2627.7,3.17473525]
[1727148185938,0.07482335,2627.8,2627.7,3.17473525]
[1727148186122,3.80506,2628.1,2627.7,3.17473525]
[1727148186433,0.07482335,2627.8,2627.7,3.17473525]
[1727148186960,7.61019,2628.1,2627.7,3.17473525]
[1727148187124,0.07482335,2627.8,2627.7,3.17473525]
[1727148187325,7.61019,2628.1,2627.7,3.17473525]
[1727148187647,0.07482335,2627.8,2627.7,3.17473525]
[1727148187851,7.61019,2628.1,2627.7,3.17473525]
[1727148188059,0.07482335,2627.8,2627.7,3.17473525]
[1727148188261,3.80506,2628.1,2627.7,3.17473525]
[1727148188481,0.07482335,2627.8,2627.7,3.17473525]
[1727148188638,3.80506,2628.1,2627.7,3.17473525]
[1727148189174,6.19892666,2628.3,2628.0,3.98533525]
[1727148189663,7.84013428,2628.3,2628.0,3.17473525]
[1727148189893,11.64498428,2628.3,2628.0,3.17473525]
[1727148190111,7.84013428,2628.3,2628.0,3.17473525]
[1727148190257,3.80496,2628.2,2628.0,3.17473525]
[1727148190461,7.84063137,2628.3,2628.0,3.17473525]
[1727148191504,6.19962375,2628.2,2628.0,3.17473525]
[1727148191794,0.07489907,2628.1,2628.0,3.17473525]
[1727148192305,3.87992907,2628.1,2628.0,3.17473525]
[1727148192510,3.8054,2627.9,2627.7,3.17473525]
[1727148192669,0.07486879,2627.8,2627.7,3.17473525]
[1727148195001,0.07486879,2627.8,2627.7,3.95853525]
[1727148195186,6.20197412,2628.2,2627.7,3.95853525]
[1727148195392,6.20197412,2628.2,2628.0,3.17473525]
[1727148195983,2.39707412,2628.2,2628.1,0.7838]
[1727148196516,6.80478,2628.3,2628.1,0.7838]
[1727148196723,8.2631456,2628.3,2628.1,0.7838]
[1727148198434,3.80488,2628.2,2628.1,0.7838]
[1727148198732,3.80488,2628.2,2628.0,3.17473525]
[1727148198939,2.39873531,2628.1,2628.0,3.17473525]
[1727148199642,6.20376531,2628.1,2628.0,3.17473525]
[1727148200134,3.80488,2628.2,2628.0,3.17473525]
[1727148200520,2.39881639,2628.1,2628.0,3.17473525]
[1727148203746,2.39881639,2628.2,2628.0,3.17473525]
[1727148203943,2.39881639,2628.2,2628.0,6.97990525]
[1727148205074,2.39863141,2628.2,2628.0,6.97990525]
[1727148205969,2.39863141,2628.2,2628.0,3.17473525]
[1727148206628,2.39863141,2628.2,2628.0,6.97990525]
[1727148206864,0.07491422,2628.1,2628.0,6.97990525]
[1727148207173,0.07491422,2628.1,2628.0,8.17030824]
[1727148207370,2.39863141,2628.4,2628.1,3.8049]
[1727148207665,2.39863141,2628.4,2628.3,3.17473525]
[1727148207868,2.39863141,2628.4,2628.3,3.95853525]
[1727148208024,2.39863141,2628.4,2628.3,3.17473525]
[1727148208430,2.39863141,2628.4,2628.3,1.46649947]
[1727148208969,6.60275332,2628.6,2628.3,1.46649947]
[1727148209274,8.32630904,2628.6,2628.3,1.46649947]
[1727148209454,2.39813571,2628.4,2628.3,1.46649947]
[1727148209771,2.3981357,2628.4,2628.3,1.46649947]
[1727148212569,12.1301207,2628.6,2628.3,1.46649947]
[1727148213068,8.3257307,2628.6,2628.3,1.46649947]
[1727148213470,12.1301607,2628.6,2628.3,1.46649947]
[1727148214267,8.3257307,2628.6,2628.3,1.46649947]
[1727148214479,2.39811977,2628.4,2628.3,1.46649947]
[1727148216785,3.8048,2628.3,2628.1,0.7838]
[1727148217090,6.82315175,2628.3,2628.2,1.46649947]
[1727148217948,4.42503198,2628.3,2628.2,1.46649947]
[1727148221809,4.50019351,2628.3,2628.2,1.46649947]
[1727148224317,3.80499,2628.2,2628.0,1.46649947]
[1727148224515,2.47364366,2628.1,2628.0,1.46649947]
[1727148224721,6.27867366,2628.1,2628.0,1.46649947]
[1727148224902,2.47364366,2628.1,2628.0,1.46649947]
[1727148225118,0.0751262,2628.1,2628.0,2.24659947]
[1727148225998,2.3986977,2628.2,2628.0,2.24659947]
[1727148226336,2.3986977,2628.2,2628.1,1.46649947]
[1727148226626,2.3986977,2628.3,2628.1,1.46649947]
[1727148226831,2.3986977,2628.3,2628.2,1.46649947]
[1727148227036,9.60235498,2628.5,2628.2,1.46649947]
[1727148227209,2.39839585,2628.3,2628.2,1.46649947]
[1727148228268,9.60235498,2628.5,2628.2,1.46649947]
[1727148228434,2.39866917,2628.3,2628.2,1.46649947]
[1727148229071,2.39866917,2628.3,2628.2,2.24659947]
[1727148229237,2.39866917,2628.3,2628.2,6.05147947]
[1727148229633,2.39860522,2628.4,2628.2,6.05147947]
[1727148229874,2.39860522,2628.4,2628.3,1.46649947]
[1727148231560,9.60277275,2628.6,2628.3,1.46649947]
[1727148231777,11.27403081,2628.6,2628.3,1.46649947]
[1727148232070,2.39880729,2628.4,2628.3,1.46649947]
[1727148232798,5.79837275,2628.6,2628.3,1.46649947]
[1727148232969,5.79837275,2628.6,2628.5,1.46649947]
[1727148234612,5.79884628,2628.6,2628.5,1.46649947]
[1727148235378,3.0,2628.6,2628.5,1.46649947]
[1727148235911,5.79884628,2628.6,2628.5,1.46649947]
[1727148236084,9.60314628,2628.6,2628.5,1.46649947]
[1727148236775,9.678328,2628.6,2628.5,1.46649947]
[1727148237121,5.874028,2628.6,2628.5,1.46649947]
[1727148237618,6.87948172,2628.6,2628.5,1.46649947]
[1727148237824,9.678328,2628.6,2628.5,1.46649947]
[1727148238734,11.0265838,2628.6,2628.5,1.46649947]
[1727148239011,11.02665499,2628.6,2628.5,1.46649947]
[1727148239371,11.02680728,2628.6,2628.5,1.46649947]
[1727148240016,3.80461,2628.4,2628.3,1.46649947]
[1727148240212,3.80478,2628.3,2627.8,4.63534]
[1727148240368,3.80478,2628.3,2628.2,1.46649947]
[1727148240570,4.89792543,2628.3,2628.2,1.46649947]
[1727148241018,1.09314543,2628.3,2628.2,1.46649947]
[1727148241221,2.79912431,2628.4,2628.2,1.46649947]
[1727148241222,3.8046,2628.4,2628.2,1.46649947]
[1727148242106,7.12667431,2628.5,2628.2,1.46649947]
[1727148242416,7.12667431,2628.5,2628.4,1.46649947]
[1727148242919,7.12726648,2628.5,2628.4,1.46649947]
[1727148245386,4.32755,2628.5,2628.4,1.46649947]
[1727148245592,5.90627809,2628.5,2628.4,1.46649947]
[1727148245900,4.90184061,2628.5,2628.4,1.46649947]
[1727148246109,9.60432252,2628.6,2628.4,1.46649947]
[1727148246416,3.0,2628.6,2628.4,1.46649947]
[1727148246577,2.39992034,2628.5,2628.4,1.46649947]
[1727148247098,2.39978251,2628.5,2628.4,1.46649947]
[1727148247304,3.0,2628.6,2628.4,1.46649947]
[1727148247616,5.79985857,2628.7,2628.4,1.46649947]
[1727148247912,5.79985857,2628.7,2628.6,1.46649947]
[1727148248118,2.79985857,2628.7,2628.6,1.46649947]
[1727148248276,2.39961938,2628.7,2628.6,2.29649947]
[1727148248479,2.39961938,2628.8,2628.6,6.33043942]
[1727148248927,2.39961938,2628.9,2628.6,6.33043942]
[1727148249075,2.40223138,2629.0,2628.8,1.46649947]
[1727148249900,2.40223138,2629.0,2628.9,0.83]
[1727148251823,2.4776402,2629.0,2628.9,0.83]
[1727148252178,0.07802082,2629.0,2628.9,0.83]
[1727148253228,2.47450266,2629.0,2628.9,0.83]
[1727148253446,0.07802082,2629.0,2628.9,0.83]
[1727148256001,0.07802082,2629.0,2628.9,1.77047514]
[1727148261034,0.07802082,2629.0,2628.9,5.57434514]
[1727148263136,6.19481888,2629.9,2629.4,3.80312]
[1727148263377,6.71770888,2630.0,2629.7,1.46649947]
[1727148263650,0.5231,2630.2,2629.7,1.46649947]
[1727148263813,0.5231,2630.2,2629.7,5.26920947]
[1727148263993,6.19422888,2630.3,2629.7,6.25866042]
[1727148264235,3.80191,2630.3,2629.7,7.08106042]
[1727148265299,3.80199,2630.2,2629.7,3.27835042]
[1727148265609,3.80199,2630.2,2629.7,1.81185095]
[1727148265818,3.80199,2630.2,2629.7,2.28889947]
[1727148266027,3.80229,2630.0,2629.7,2.28889947]
[1727148267529,0.0382057,2630.6,2630.5,4.62395]
[1727148267738,0.0382057,2630.6,2630.5,0.8224]
[1727148267943,0.0382057,2630.6,2629.9,1.46649947]
[1727148267944,0.0382057,2631.4,2631.0,0.8224]
[1727148268110,0.0382057,2631.4,2631.3,1.46649947]
[1727148268312,0.0382057,2631.4,2631.1,3.17008197]
[1727148269426,3.8384657,2631.4,2631.1,3.17008197]
[1727148269629,4.28226227,2631.4,2631.1,3.17008197]
[1727148270163,4.28227227,2631.4,2631.1,3.17008197]
[1727148270719,0.05642409,2631.3,2631.1,3.17008197]
[1727148272671,0.05642409,2631.3,2630.8,3.17008197]
[1727148272861,3.85693409,2631.3,2630.8,3.17008197]
[1727148273201,0.81392064,2631.2,2630.8,3.17008197]
[1727148273396,0.05643925,2631.1,2630.8,3.17008197]
[1727148278660,3.85712925,2631.1,2630.8,3.17008197]
[1727148279209,3.80084,2631.0,2630.5,3.98198197]
[1727148279365,4.78625793,2630.9,2630.5,3.17008197]
[1727148279558,3.80113,2630.8,2630.5,3.17008197]
[1727148279903,0.05710655,2630.7,2630.5,3.17008197]
[1727148280278,3.80113,2630.8,2630.5,3.17008197]
[1727148280478,0.05710655,2630.6,2630.5,3.17008197]
[1727148280667,3.80131,2630.7,2630.5,3.17008197]
[1727148280863,0.05710655,2630.6,2630.2,3.17008197]
[1727148281175,0.05710655,2630.6,2630.1,3.8021]
[1727148281503,0.05710655,2630.6,2630.2,6.97203197]
[1727148282008,0.05710655,2630.6,2630.2,3.17008197]
[1727148285198,0.05710655,2630.6,2630.2,6.97206197]
[1727148288267,0.05710655,2630.6,2630.5,1.46396883]
[1727148288809,0.05685385,2630.6,2630.5,1.46396883]
[1727148288966,7.60234,2630.8,2630.5,1.46396883]
[1727148289167,0.87703785,2630.7,2630.5,1.46396883]
[1727148293411,4.67835785,2630.7,2630.5,1.46396883]
[1727148293601,0.87703785,2630.7,2630.5,1.46396883]
[1727148293977,0.05685385,2630.7,2630.5,1.46396883]
[1727148294199,3.5995,2630.9,2630.5,1.46396883]
[1727148294408,3.5995,2630.9,2630.7,1.46396883]
[1727148296977,0.05685385,2630.8,2630.7,1.46396883]
[1727148298436,0.05685385,2630.8,2630.3,3.80173]
[1727148298437,0.05685385,2630.8,2630.5,1.46396883]
[1727148299416,4.98388224,2630.8,2630.5,1.46396883]
[1727148299604,1.18268224,2630.8,2630.5,1.46396883]
[1727148302019,1.18268224,2630.8,2630.0,0.8119]
[1727148302020,3.8018,2630.4,2630.0,0.8119]
[1727148302223,3.80195,2630.3,2629.8,2.31396883]
[1727148302431,3.80186,2630.3,2629.8,2.31396883]
[1727148302756,3.80199,2630.2,2629.8,2.31396883]
[1727148302916,0.05651025,2630.3,2629.8,2.31396883]
[1727148303119,0.05633838,2630.1,2629.8,2.31396883]
[1727148303277,3.80179,2630.4,2629.8,2.31396883]
[1727148303482,4.622066,2630.4,2630.0,1.46396883]
[1727148304780,8.423906,2630.4,2630.0,1.46396883]
[1727148305302,4.622066,2630.4,2630.0,1.46396883]
[1727148309532,4.622066,2630.4,2630.2,0.5]
[1727148309730,3.80184,2630.3,2630.2,0.5]
[1727148311827,3.85817838,2630.3,2630.2,0.5]
[1727148312820,0.05633838,2630.3,2630.2,1.96396883]
[1727148313025,0.05633838,2630.3,2630.2,7.16257471]
[1727148313222,0.05633838,2630.3,2630.2,6.58595883]
[1727148313425,3.0,2630.9,2630.5,0.82]
[1727148313736,6.19174409,2631.1,2630.7,1.46396883]
[1727148313935,2.39094409,2631.0,2630.7,1.46396883]
[1727148314304,3.80107,2630.9,2630.7,1.46396883]
[1727148314829,3.80112,2630.8,2630.5,2.28396883]
[1727148315041,6.19201409,2630.9,2630.5,2.28396883]
[1727148315547,3.80117,2630.8,2630.5,2.28396883]
[1727148316107,3.80131,2630.7,2630.5,2.28396883]
[1727148317855,6.19201409,2630.9,2630.5,2.28396883]
[1727148318031,2.39094409,2630.8,2630.5,2.28396883]
[1727148318238,6.19215409,2630.8,2630.5,2.28396883]
[1727148318421,6.19429987,2630.8,2630.5,2.28396883]
[1727148322217,2.39308987,2630.7,2630.5,2.28396883]
[1727148323048,6.19429987,2630.8,2630.5,2.28396883]
[1727148323243,2.39308987,2630.7,2630.5,2.28396883]
[1727148323453,2.39455097,2630.7,2630.5,2.28396883]
[1727148323947,6.19576097,2630.8,2630.5,2.28396883]
[1727148324156,2.39455097,2630.7,2630.5,2.28396883]
[1727148326864,0.05600894,2630.6,2630.5,2.28396883]
[1727148330163,0.05600894,2630.6,2630.5,2.31396883]
[1727148334362,0.05600894,2630.6,2630.5,1.49396883]
[1727148336375,3.85741894,2630.6,2630.5,1.49396883]
[1727148337345,3.85741894,2630.6,2630.5,0.03]
[1727148337746,0.05600894,2630.6,2630.5,0.03]
[1727148340051,2.45100303,2630.6,2630.5,0.03]
[1727148340561,0.05600894,2630.6,2630.5,0.03]
[1727148340872,3.85741894,2630.6,2630.5,0.03]
[1727148341071,7.31773333,2630.6,2630.5,0.03]
[1727148342135,10.71689901,2630.6,2630.5,0.03]
[1727148343331,7.92273924,2630.6,2630.5,0.03]
[1727148343831,10.71729408,2630.6,2630.5,0.03]
[1727148346984,7.92273924,2630.6,2630.5,0.03]
[1727148347145,6.85741894,2630.6,2630.5,0.03]
[1727148349386,9.65197378,2630.6,2630.5,0.03]
[1727148351699,5.85056378,2630.6,2630.5,0.03]
[1727148351901,2.45161892,2630.6,2630.5,0.7924]
[1727148352215,0.05600894,2630.6,2630.5,4.59395]
[1727148352376,0.05600894,2630.6,2630.5,5.66353402]
[1727148352578,2.39560998,2630.9,2630.6,0.7624]
[1727148352832,2.39560998,2630.9,2630.8,1.46396883]
[1727148353890,2.39560998,2630.9,2630.8,1.49396883]
[1727148354814,2.39541285,2630.9,2630.8,1.49396883]
[1727148355117,2.39541044,2630.9,2630.8,1.49396883]
[1727148355456,6.80083,2631.0,2630.8,1.49396883]
[1727148355600,3.0,2631.0,2630.8,1.49396883]
[1727148355937,2.39554567,2630.9,2630.8,1.49396883]
[1727148356814,2.44984941,2630.9,2630.8,1.71960571]
[1727148357335,2.44984941,2630.9,2630.8,2.48200571]
[1727148357336,0.05430374,2630.9,2630.8,2.48200571]
[1727148358224,2.39559581,2631.0,2630.8,2.25636883]
[1727148358426,2.44837249,2630.9,2630.8,2.25636883]
[1727148358661,0.05277668,2630.9,2630.8,2.25636883]
[1727148358873,2.44837249,2630.9,2630.8,2.25636883]
[1727148359327,0.05277668,2630.9,2630.8,2.25636883]
[1727148362632,0.05277668,2630.9,2630.8,0.7924]
[1727148362995,6.24918845,2630.9,2630.8,0.03]
[1727148363199,6.8740943,2630.9,2630.8,0.03]
[1727148363392,6.87399135,2630.9,2630.8,0.03]
[1727148363894,4.47866253,2630.9,2630.8,0.03]
[1727148364103,6.24905232,2630.9,2630.8,0.03]
[1727148364312,3.85375668,2630.9,2630.8,0.03]
[1727148364464,7.45325668,2630.9,2630.8,0.03]
[1727148364664,10.24792708,2630.9,2630.8,0.03]
[1727148364864,7.45325668,2630.9,2630.8,0.03]
[1727148365186,8.90878779,2630.9,2630.8,0.03]
[1727148365494,11.70340083,2630.9,2630.8,0.03]
[1727148366076,8.90878779,2630.9,2630.8,0.03]
[1727148366401,8.30928779,2630.9,2630.8,0.03]
[1727148370077,11.10384414,2630.9,2630.8,0.03]
[1727148370515,8.90878779,2630.9,2630.8,0.03]
[1727148372843,9.45878779,2630.9,2630.8,0.03]
[1727148375218,10.92275662,2630.9,2630.8,0.03]
[1727148375441,13.85588745,2630.9,2630.8,0.03]
[1727148375606,9.37141949,2630.9,2630.8,0.03]
[1727148375803,7.51766281,2630.9,2630.8,0.03]
[1727148376008,11.31864281,2630.9,2630.8,0.03]
[1727148376318,3.80213,2630.1,2629.6,2.29086883]
[1727148376519,3.80213,2630.1,2629.6,2.51995571]
[1727148376520,6.1975215,2630.0,2629.6,2.51995571]
[1727148376732,0.05118426,2629.9,2629.6,2.51995571]
[1727148378119,3.85365426,2629.9,2629.6,2.51995571]